bitfinex/quotes_ETHUSD_20211001
["timestamp","ask_amount","ask_price","bid_price","bid_amount"]
[1633102854988,0.186,3237.4,3237.3,8.57844834]
[1633102855388,0.90961802,3237.4,3237.3,3.57844834]
[1633102855597,0.90961802,3237.4,3237.3,3.56189834]
[1633102856400,0.90961802,3237.4,3237.3,0.48934834]
[1633102856588,5.55361802,3237.4,3237.3,0.003]
[1633102856988,5.55361802,3237.4,3237.0,0.006]
[1633102857592,10.18754802,3237.4,3237.0,0.006]
[1633102857991,5.55361802,3237.4,3237.2,3.08926]
[1633102858410,4.83,3237.4,3237.3,0.003]
[1633102858995,4.83,3237.4,3237.3,0.48116445]
[1633102859191,4.83,3237.4,3237.3,0.63263356]
[1633102859392,4.83,3237.4,3237.3,0.50101176]
[1633102859599,4.83,3237.4,3237.3,0.47575144]
[1633102859793,4.83,3237.4,3237.3,0.53308808]
[1633102859992,4.83,3237.4,3237.3,0.50938481]
[1633102860214,4.83,3237.4,3237.3,0.003]
[1633102861006,9.4638,3237.4,3237.3,0.003]
[1633102861194,4.83,3237.4,3237.3,0.003]
[1633102863196,5.79620529,3237.4,3237.3,0.003]
[1633102863410,5.74620529,3237.4,3237.3,0.003]
[1633102864599,0.96620529,3237.4,3237.3,0.003]
[1633102865199,4.63358,3237.6,3237.3,0.003]
[1633102865398,0.186,3237.5,3237.3,0.003]
[1633102865798,8.40138614,3237.4,3237.3,0.003]
[1633102865999,13.22124614,3237.4,3237.3,0.003]
[1633102866420,17.86524614,3237.4,3237.0,0.006]
[1633102866608,13.19683563,3237.1,3237.0,0.006]
[1633102866802,13.38283563,3237.1,3236.5,0.94665231]
[1633102866999,1.13283563,3237.1,3236.6,0.006]
[1633102867199,1.13283563,3237.1,3236.6,3.09501]
[1633102867200,0.186,3237.1,3236.6,3.09501]
[1633102867399,0.14533484,3237.1,3236.6,0.006]
[1633102867613,0.14533484,3237.1,3236.7,0.006]
[1633102868200,0.9021851,3236.8,3236.7,0.006]
[1633102868410,0.186,3236.8,3236.7,1.3]
[1633102868599,0.186,3236.8,3236.6,0.006]
[1633102870002,0.186,3236.8,3236.7,1.294]
[1633102870400,0.186,3236.8,3236.7,1.3]
[1633102870802,0.136,3236.8,3236.7,1.3]
[1633102871007,0.136,3236.8,3236.7,0.006]
[1633102871608,0.136,3236.8,3236.6,0.006]
[1633102873204,0.136,3236.8,3236.7,4.63345]
[1633102873401,0.136,3236.8,3236.6,0.006]
[1633102873605,0.136,3236.8,3236.7,0.006]
[1633102874203,1.04918812,3236.8,3236.7,0.006]
[1633102874802,1.04918812,3236.8,3236.5,0.009]
[1633102875602,0.78337596,3236.6,3236.5,0.009]
[1633102875802,0.96937596,3236.6,3236.5,0.009]
[1633102876002,0.186,3236.6,3236.5,0.009]
[1633102876201,0.18725889,3236.6,3236.5,0.009]
[1633102878019,3.51634889,3236.6,3236.5,0.009]
[1633102878204,0.18725889,3236.6,3236.5,0.009]
[1633102878405,14.37209889,3236.6,3236.5,0.009]
[1633102878608,0.003,3236.5,3236.4,0.25]
[1633102878804,4.833,3236.5,3236.4,0.25]
[1633102879404,4.833,3236.5,3235.0,0.009]
[1633102879604,4.394,3235.9,3235.0,0.009]
[1633102879813,3.0911697,3235.4,3234.9,0.25]
[1633102880005,0.186,3235.3,3234.9,0.25]
[1633102880206,4.644,3235.0,3234.9,0.25]
[1633102880404,4.83,3235.0,3234.9,0.25]
[1633102880804,4.83,3235.0,3234.9,0.259]
[1633102881009,4.78,3235.0,3234.9,0.25]
[1633102882204,0.186,3235.0,3234.9,0.25]
[1633102886806,0.18701215,3235.0,3234.9,0.25]
[1633102893112,0.18701215,3235.0,3234.9,1.20073545]
[1633102893514,0.18701215,3235.0,3234.9,0.25]
[1633102898120,1.16451253,3235.0,3234.9,0.25]
[1633102898718,0.18701215,3235.0,3234.9,0.25]
[1633102908999,0.18701215,3235.0,3234.9,1.19274037]
[1633102909198,0.18701215,3235.0,3234.9,0.25]
[1633102909597,0.00101215,3235.0,3234.9,0.25]
[1633102910009,21.1402104,3236.1,3234.9,10.95861123]
[1633102910010,13.414,3236.1,3234.9,10.95861123]
[1633102910202,22.6442,3236.6,3236.0,2.3724107]
[1633102910402,11.4756,3236.6,3236.0,1.71802978]
[1633102910598,11.4756,3236.6,3236.0,1.72102978]
[1633102911001,0.186,3236.6,3236.0,1.72102978]
[1633102911407,1.1859031,3236.3,3236.0,0.74846406]
[1633102911598,1.1859031,3236.3,3236.0,0.45475789]
[1633102911800,1.1859031,3236.3,3236.0,0.003]
[1633102911998,0.186,3236.6,3236.0,3.29787428]
[1633102912199,0.186,3236.6,3236.0,3.29487428]
[1633102912399,0.186,3236.6,3236.0,3.90371231]
[1633102912602,0.186,3236.6,3236.3,4.634]
[1633102913200,1.11288804,3236.4,3236.3,4.634]
[1633102913604,1.11288804,3236.4,3236.1,6.17858]
[1633102913799,1.11288804,3236.4,3236.0,0.003]
[1633102914199,1.11288804,3236.4,3235.8,0.003]
[1633102914601,1.11288804,3236.4,3235.9,0.80611626]
[1633102914798,1.11288804,3236.4,3236.0,0.29612185]
[1633102915000,0.186,3236.6,3236.0,0.90141903]
[1633102915800,0.186,3236.6,3236.2,4.63407]
[1633102916204,0.186,3236.6,3236.5,0.81058807]
[1633102916598,0.186,3236.6,3236.2,4.7138905]
[1633102916800,0.186,3236.6,3236.4,1.294]
[1633102916999,0.186,3237.1,3236.6,0.3348985]
[1633102917198,0.186,3237.1,3237.0,0.003]
[1633102917598,1.37712034,3237.1,3236.9,0.003]
[1633102917801,0.186,3237.1,3237.0,0.96922101]
[1633102918198,0.186,3237.1,3237.0,0.97222101]
[1633102918599,0.186,3237.1,3237.0,0.003]
[1633102919000,0.186,3237.1,3236.9,0.003]
[1633102919598,0.186,3237.1,3236.9,4.63615]
[1633102919800,0.186,3237.1,3236.9,5.61931022]
[1633102920000,0.186,3237.1,3237.0,0.003]
[1633102920205,0.186,3237.5,3237.2,0.34621634]
[1633102920519,0.186,3237.9,3237.3,0.81413177]
[1633102920711,0.186,3237.9,3237.6,4.63191]
[1633102920903,0.186,3237.9,3237.8,0.84369189]
[1633102921911,1.19786,3238.1,3237.8,0.84369189]
[1633102922103,1.19786,3238.1,3237.8,5.47523189]
[1633102923503,2.13458408,3238.1,3237.8,5.47523189]
[1633102924304,0.189,3238.0,3237.6,3.08794]
[1633102924904,0.189,3238.0,3237.3,0.26920165]
[1633102925105,0.189,3238.0,3237.2,0.69426498]
[1633102925106,0.189,3238.0,3237.2,0.25]
[1633102925306,0.93233113,3237.9,3237.3,5.58536932]
[1633102925504,0.93233113,3237.9,3237.5,3.08816]
[1633102926005,0.189,3238.0,3237.5,3.08816]
[1633102927814,0.96340611,3237.9,3237.5,3.08816]
[1633102928015,0.19034513,3238.0,3237.5,3.08816]
[1633102929806,0.992998,3237.8,3237.5,3.08816]
[1633102930416,2.0476574,3237.8,3237.5,3.08816]
[1633102930808,0.992998,3237.8,3237.5,3.08816]
[1633102931213,0.992998,3237.8,3237.4,0.079913]
[1633102931419,0.992998,3237.8,3237.2,0.25]
[1633102934009,0.79066894,3237.3,3237.2,0.25]
[1633102934223,1.03200631,3237.9,3237.2,0.25]
[1633102935210,0.186,3237.8,3237.2,0.25]
[1633102935812,3.2745104,3237.8,3237.2,0.25]
[1633102936015,0.9494146,3237.7,3237.2,0.25]
[1633102936230,0.186,3237.7,3237.2,0.25]
[1633102937022,0.186,3237.7,3237.2,4.88174]
[1633102937412,0.186,3237.7,3237.3,0.23315037]
[1633102937630,0.186,3237.7,3237.3,1.2373022]
[1633102937814,0.186,3237.7,3237.4,0.27353226]
[1633102938023,0.186,3237.7,3237.5,0.30981717]
[1633102938231,0.18731337,3237.7,3237.5,0.30981717]
[1633102938620,0.00131337,3237.7,3237.5,0.30981717]
[1633102940214,0.00131337,3237.7,3237.5,0.51602286]
[1633102940414,0.00131337,3237.7,3237.3,0.34316748]
[1633102940814,0.00131337,3237.7,3237.6,0.41288476]
[1633102941213,0.00131337,3237.7,3237.6,0.59407044]
[1633102941414,0.00131337,3237.7,3237.6,0.079913]
[1633102941616,0.00131337,3237.7,3237.6,0.54602537]
[1633102941815,0.00131337,3237.7,3237.4,0.2634744]
[1633102942028,0.00131337,3237.7,3237.5,0.23600208]
[1633102942214,0.00131337,3237.7,3237.5,0.6549154]
[1633102942615,0.00131337,3237.7,3237.6,0.34074652]
[1633102942814,0.00131337,3237.7,3237.6,0.20378053]
[1633102943015,0.00131337,3237.7,3237.6,0.26728176]
[1633102943215,0.00131337,3237.7,3237.6,0.30056279]
[1633102943418,0.00131337,3237.7,3237.5,0.6549154]
[1633102943616,0.00131337,3237.7,3237.6,0.30613403]
[1633102943815,0.00131337,3237.7,3237.5,0.6549154]
[1633102944216,0.00131337,3237.7,3237.6,0.33963925]
[1633102944426,0.00131337,3237.7,3237.5,0.25477401]
[1633102944621,0.00131337,3237.7,3237.3,7.71928]
[1633102944818,0.00131337,3237.7,3237.4,0.25501493]
[1633102945219,0.00131337,3237.7,3237.2,0.329913]
[1633102945427,0.00131337,3237.7,3237.2,0.60170102]
[1633102945820,0.00131337,3237.7,3237.2,0.329913]
[1633102946238,0.95133866,3237.4,3237.2,0.329913]
[1633102947420,0.93621783,3237.4,3237.2,0.329913]
[1633102947619,0.93621783,3237.4,3237.2,4.961993]
[1633102947818,0.00131337,3237.7,3237.2,4.961993]
[1633102948419,0.00131337,3237.7,3237.6,0.079913]
[1633102948624,0.00131337,3237.7,3237.6,0.42407731]
[1633102948829,1.11035334,3237.7,3237.6,0.42407731]
[1633102949029,1.11035334,3237.7,3237.6,0.079913]
[1633102949223,1.11035334,3237.7,3237.3,0.67855772]
[1633102949622,1.11035334,3237.7,3237.2,0.79015391]
[1633102949821,1.11035334,3237.7,3237.2,0.25]
[1633102950019,0.00131337,3237.7,3237.4,4.63177]
[1633102950223,0.00131337,3237.7,3237.5,0.29766216]
[1633102950621,0.00131337,3237.7,3237.2,0.25]
[1633102950820,0.00131337,3237.7,3237.2,0.46743116]
[1633102951224,1.06553631,3237.6,3237.5,4.85941088]
[1633102951420,0.00131337,3237.7,3237.5,4.63169]
[1633102951624,0.00131337,3237.7,3237.5,0.20746961]
[1633102951820,0.00131337,3237.7,3237.5,0.84097036]
[1633102952021,0.00131337,3237.7,3237.6,0.20361294]
[1633102952221,0.00131337,3237.7,3237.6,0.25444446]
[1633102952429,0.00131337,3237.7,3237.5,0.84097036]
[1633102952624,0.00131337,3237.7,3237.6,4.84806741]
[1633102953220,0.00131337,3237.7,3237.3,0.31718949]
[1633102953620,0.00131337,3237.7,3237.5,4.63168]
[1633102953820,0.00131337,3237.7,3237.6,0.25032924]
[1633102954021,0.00131337,3237.7,3237.5,5.45341945]
[1633102954221,0.00131337,3237.7,3237.6,0.33026145]
[1633102954421,0.00131337,3237.7,3237.6,0.33601496]
[1633102954622,0.94792654,3237.7,3237.5,0.31721175]
[1633102954836,0.94792654,3237.7,3237.6,4.63135]
[1633102955028,13.84065877,3237.6,3237.2,0.25]
[1633102955324,0.186,3237.5,3237.2,0.25]
[1633102955830,5.36571646,3237.4,3237.2,0.25]
[1633102956086,0.186,3237.3,3237.2,0.25]
[1633102956432,0.186,3237.3,3236.9,0.003]
[1633102956821,0.186,3237.3,3236.7,0.003]
[1633102957049,3.0887838,3237.1,3236.7,0.003]
[1633102957223,0.92734,3237.0,3236.7,0.003]
[1633102958422,0.7074662,3236.9,3236.7,0.003]
[1633102959324,0.2574662,3236.9,3236.7,0.003]
[1633102959527,1.03327447,3236.8,3236.7,0.003]
[1633102959725,1.03327447,3236.8,3236.5,0.003]
[1633102959726,1.03327447,3236.8,3236.5,0.006]
[1633102960130,5.66695447,3236.8,3236.5,0.006]
[1633102960531,5.66695447,3236.8,3236.4,0.006]
[1633102960928,5.61695447,3236.8,3236.4,0.006]
[1633102961128,8.70623447,3236.8,3236.4,0.006]
[1633102961328,0.98327447,3236.8,3236.4,0.006]
[1633102962127,0.98327447,3236.8,3236.2,0.006]
[1633102963128,0.90123281,3236.4,3236.2,0.006]
[1633102963352,3.23705313,3236.7,3236.2,0.006]
[1633102963530,0.98327447,3236.8,3236.2,0.006]
[1633102963531,3.0895316,3236.5,3236.2,0.006]
[1633102963730,3.2755316,3236.5,3236.1,0.006]
[1633102963930,3.2755316,3236.5,3235.9,0.009]
[1633102964131,3.2755316,3236.5,3235.8,0.009]
[1633102964335,6.26330309,3236.4,3235.9,1.36021936]
[1633102964531,4.63544,3236.1,3235.8,0.009]
[1633102964729,4.63544,3236.1,3235.5,0.003]
[1633102964730,0.186,3236.0,3235.5,0.003]
[1633102964947,0.186,3236.0,3235.3,0.262]
[1633102965195,0.83790973,3235.5,3235.3,0.262]
[1633102965397,0.83790973,3235.5,3235.4,0.012]
[1633102965593,1.05069015,3235.5,3235.4,0.012]
[1633102966594,1.96435043,3235.5,3235.4,0.012]
[1633102967796,2.15035043,3235.5,3235.4,0.012]
[1633102970807,0.186,3235.5,3235.4,0.012]
[1633102971005,0.186,3235.5,3235.4,1.5248]
[1633102971201,0.186,3235.5,3235.4,2.89952678]
[1633102979012,0.18697136,3235.5,3235.4,2.89952678]
[1633102981426,1.36043278,3235.5,3235.4,2.89952678]
[1633102982219,0.74043278,3235.5,3235.4,2.89952678]
[1633102982613,0.186,3235.6,3235.4,2.89952678]
[1633102982813,0.186,3235.6,3235.5,1.38426237]
[1633102983014,0.186,3235.6,3235.5,1.39626237]
[1633102983415,0.186,3235.6,3235.5,3.01146237]
[1633102984114,1.26343428,3235.6,3235.5,3.01146237]
[1633102984915,1.26343428,3235.6,3235.5,2.96146237]
[1633102988923,1.26343428,3235.6,3235.5,1.34626237]
[1633102989518,1.26431363,3235.6,3235.5,1.34626237]
[1633102993124,0.18687935,3235.6,3235.5,1.34626237]
[1633102994325,1.24372817,3235.6,3235.5,1.34626237]
[1633102994525,0.18687935,3235.6,3235.5,1.34626237]
[1633102997726,0.13687935,3235.6,3235.5,1.34626237]
[1633102999330,4.77249935,3235.6,3235.5,1.34626237]
[1633102999528,4.77249935,3235.6,3235.5,1.29626237]
[1633103000530,4.77249935,3235.6,3235.5,2.22614574]
[1633103000731,0.00087935,3235.6,3235.5,3.73685874]
[1633103000930,0.00087935,3235.6,3235.5,3.9783648]
[1633103001235,0.00087935,3235.6,3235.5,8.31071239]
[1633103001431,25.5678,3237.9,3235.6,13.75]
[1633103001633,1.0571447,3237.5,3237.2,0.079913]
[1633103001831,3.0888,3237.8,3237.2,5.05970124]
[1633103002033,3.09457,3238.0,3237.8,0.079913]
[1633103002230,0.006,3238.0,3237.8,0.32131755]
[1633103002830,0.99354359,3237.9,3237.8,3.29008864]
[1633103003039,0.99354359,3237.9,3237.8,0.32131755]
[1633103003229,0.99354359,3237.9,3237.8,0.24140455]
[1633103006030,0.99354359,3237.9,3237.8,0.31368423]
[1633103006231,0.99354359,3237.9,3237.8,0.23053477]
[1633103006431,0.99354359,3237.9,3237.5,2.92109693]
[1633103006628,0.99354359,3237.9,3237.4,0.329913]
[1633103007108,0.73120309,3237.8,3237.4,0.55973637]
[1633103007244,3.093948,3238.0,3237.4,0.55973637]
[1633103007436,3.093948,3238.0,3237.6,0.26785667]
[1633103007632,3.07883959,3238.0,3237.6,0.26785667]
[1633103008232,3.07883959,3238.0,3237.7,0.84691898]
[1633103008437,3.07883959,3238.0,3237.8,0.29784291]
[1633103008632,3.07883959,3238.0,3237.5,3.01119894]
[1633103008633,3.07883959,3238.0,3237.6,0.32234011]
[1633103009839,0.76635888,3237.8,3237.4,1.952413]
[1633103010050,0.76635888,3237.8,3237.4,0.329913]
[1633103010233,0.76635888,3237.8,3237.4,0.25]
[1633103010632,0.76635888,3237.8,3237.4,0.329913]
[1633103011635,0.76635888,3237.8,3237.4,0.25]
[1633103011839,6.16697959,3238.0,3237.4,0.25]
[1633103012034,1.16182099,3237.6,3237.4,0.25]
[1633103012455,6.11697959,3238.0,3237.4,0.25]
[1633103012835,0.77912284,3237.6,3237.4,0.25]
[1633103013103,6.11697959,3238.0,3237.4,0.25]
[1633103013235,6.11697959,3238.0,3237.4,1.4868]
[1633103013447,0.006,3238.0,3237.9,0.99102758]
[1633103013635,0.006,3238.0,3237.9,3.1289299]
[1633103013834,0.006,3238.0,3237.8,0.079913]
[1633103015446,0.006,3238.0,3237.4,0.15]
[1633103015640,0.81266489,3237.9,3237.4,0.47570486]
[1633103015839,0.81266489,3237.9,3237.5,0.31317707]
[1633103016119,1.15386,3238.1,3237.5,0.31317707]
[1633103016444,1.15386,3238.1,3237.5,0.31617707]
[1633103016836,1.15386,3238.1,3237.5,0.003]
[1633103017053,0.186,3238.0,3237.5,0.003]
[1633103017837,1.05237527,3237.7,3237.5,0.003]
[1633103018038,1.05237527,3237.7,3236.9,0.1206]
[1633103018039,1.23837527,3237.7,3236.9,0.1206]
[1633103018253,1.23837527,3237.7,3236.5,0.003]
[1633103018254,3.24134766,3237.6,3237.0,0.003]
[1633103018441,1.23837527,3237.7,3237.0,0.003]
[1633103018442,0.186,3237.5,3237.0,0.003]
[1633103018641,0.186,3237.4,3236.8,0.003]
[1633103018841,1.89080678,3237.2,3236.4,0.006]
[1633103019110,0.85631486,3236.5,3236.4,0.006]
[1633103019251,0.85631486,3236.5,3236.3,0.006]
[1633103019446,3.0892,3236.7,3236.3,0.006]
[1633103019839,3.0892,3236.7,3236.2,0.006]
[1633103020039,4.63432,3236.5,3236.2,0.006]
[1633103020243,0.186,3236.4,3236.2,0.006]
[1633103020439,1.06912718,3236.3,3236.0,0.009]
[1633103020642,0.186,3236.2,3236.0,0.009]
[1633103020839,0.186,3236.2,3235.9,0.97556094]
[1633103021257,3.27569,3236.2,3236.0,0.009]
[1633103021640,0.186,3236.2,3236.1,0.079913]
[1633103022040,0.186,3236.2,3236.1,0.006]
[1633103022238,0.186,3236.2,3236.1,0.085913]
[1633103022543,0.186,3236.2,3236.1,0.006]
[1633103022942,1.25071265,3236.2,3236.0,0.009]
[1633103023440,0.186,3236.2,3236.0,0.009]
[1633103023640,0.186,3236.2,3236.0,0.60592194]
[1633103023841,0.186,3236.2,3236.0,0.009]
[1633103024041,0.186,3236.2,3236.1,0.006]
[1633103024247,0.186,3236.2,3235.9,0.009]
[1633103024642,1.03318563,3236.1,3235.8,0.009]
[1633103024842,0.186,3236.0,3235.8,0.009]
[1633103025841,0.186,3236.0,3235.7,0.52802231]
[1633103026243,0.186,3236.0,3235.8,0.009]
[1633103027249,0.186,3236.0,3235.7,0.52747214]
[1633103027642,0.186,3236.0,3235.8,0.009]
[1633103028044,0.186,3236.0,3235.7,0.009]
[1633103028244,0.186,3236.0,3235.7,0.52766476]
[1633103028652,0.186,3236.0,3235.8,0.009]
[1633103029046,4.82101,3236.0,3235.8,0.009]
[1633103029248,4.82101,3236.0,3235.7,0.009]
[1633103029446,0.186,3236.0,3235.7,0.009]
[1633103029648,0.186,3236.0,3235.8,1.41533561]
[1633103029847,0.186,3236.0,3235.9,1.41501436]
[1633103030048,2.23318637,3236.0,3235.9,1.42582758]
[1633103030265,2.23403964,3236.0,3235.9,1.42631111]
[1633103031648,1.27061517,3236.0,3235.9,1.42631111]
[1633103032660,2.09601709,3236.0,3235.9,1.42631111]
[1633103033851,2.09601709,3236.0,3235.9,0.009]
[1633103034251,3.09075,3236.2,3236.1,17.21881169]
[1633103034457,3.09071,3237.0,3236.1,17.21881169]
[1633103034458,0.53570797,3238.0,3236.6,4.32643504]
[1633103034656,3.686,3237.9,3237.8,0.02537466]
[1633103034871,0.003,3238.0,3237.9,0.21585279]
[1633103035053,1.10686,3238.1,3237.9,3.73896896]
[1633103035268,1.10686,3238.1,3238.0,0.73695915]
[1633103035454,1.10686,3238.1,3238.0,1.00433946]
[1633103036454,2.20779464,3238.1,3238.0,1.00433946]
[1633103036652,1.10686,3238.1,3238.0,1.00433946]
[1633103037661,1.09175229,3238.1,3238.0,10.07149946]
[1633103037853,0.006,3238.4,3238.2,0.24439998]
[1633103038053,0.006,3238.4,3238.3,22.04346908]
[1633103038253,0.006,3238.4,3238.3,27.5579463]
[1633103038455,0.006,3238.4,3238.3,26.64779957]
[1633103038657,0.006,3238.4,3238.3,26.20557369]
[1633103038861,0.009,3238.5,3238.4,13.006]
[1633103039052,0.009,3238.5,3238.4,19.901265]
[1633103039266,0.0001,3238.6,3238.5,0.009]
[1633103039452,0.00737409,3239.2,3238.6,13.7]
[1633103039665,0.00737409,3239.2,3239.1,18.48969496]
[1633103039857,0.01496495,3239.9,3239.2,13.70296602]
[1633103040131,0.00998565,3240.8,3239.6,4.66826948]
[1633103040132,0.09393947,3240.1,3239.6,4.66826948]
[1633103040259,0.00998565,3240.8,3240.1,10.45]
[1633103040466,0.00998565,3240.8,3240.2,6.19988267]
[1633103040855,0.00998565,3240.8,3240.2,6.315]
[1633103041060,0.00998565,3240.8,3240.0,0.1184]
[1633103041061,16.9156216,3240.2,3240.0,0.1184]
[1633103041290,3.9656216,3240.2,3239.7,0.25]
[1633103041457,0.186,3240.1,3239.7,0.25]
[1633103042059,0.84713653,3240.0,3239.7,0.25]
[1633103042258,0.186,3239.9,3239.7,0.25]
[1633103043057,0.16151321,3239.7,3238.9,0.006]
[1633103043258,1.76615923,3239.0,3238.9,0.006]
[1633103043458,1.76615923,3239.0,3238.8,0.006]
[1633103043459,1.07402795,3239.0,3238.8,0.006]
[1633103044475,1.08159773,3238.9,3238.8,0.006]
[1633103045272,1.07402795,3239.0,3238.8,0.006]
[1633103046267,8.79877069,3238.9,3238.8,0.006]
[1633103046462,1.18477069,3238.9,3238.8,0.006]
[1633103046861,1.18477069,3238.9,3238.2,0.009]
[1633103047061,1.18477069,3238.9,3238.0,0.012]
[1633103047265,1.18477069,3238.9,3238.1,1.42786896]
[1633103047463,1.18477069,3238.9,3238.4,0.82392873]
[1633103047661,4.63115,3238.8,3238.2,0.088913]
[1633103047863,0.186,3238.7,3238.5,0.009]
[1633103048063,0.186,3238.7,3238.3,0.009]
[1633103048670,1.06250283,3238.4,3238.3,0.009]
[1633103048866,1.06250283,3238.4,3238.2,0.009]
[1633103050466,0.186,3238.7,3238.2,0.009]
[1633103050868,1.5,3238.4,3238.2,0.009]
[1633103051267,1.50113218,3238.4,3238.2,0.009]
[1633103051675,0.92929396,3238.3,3238.2,0.009]
[1633103051867,1.50113218,3238.4,3238.2,0.009]
[1633103052129,1.50113218,3238.4,3238.1,0.39683775]
[1633103052266,1.50113218,3238.4,3238.1,0.40083775]
[1633103052466,1.50113218,3238.4,3238.2,0.009]
[1633103053066,0.93994032,3238.3,3238.2,0.009]
[1633103053478,1.50113218,3238.4,3238.2,0.009]
[1633103053681,1.50113218,3238.4,3238.1,0.29428295]
[1633103054072,1.50113218,3238.4,3238.2,0.009]
[1633103054669,1.50113218,3238.4,3238.0,0.012]
[1633103055134,1.0390328,3238.3,3238.0,0.012]
[1633103057073,0.186,3238.2,3238.0,0.012]
[1633103057891,0.186,3238.2,3237.5,0.015]
[1633103058138,3.08868,3238.0,3237.5,0.015]
[1633103058276,4.63296,3237.8,3237.5,0.015]
[1633103058477,0.186,3237.7,3237.5,0.015]
[1633103058675,1.02401322,3237.6,3237.5,0.015]
[1633103058882,1.02401322,3237.6,3237.2,0.015]
[1633103059488,0.98409605,3237.3,3236.9,0.018]
[1633103059677,4.07302605,3237.3,3236.9,0.018]
[1633103060077,4.25902605,3237.3,3236.9,0.018]
[1633103061142,4.63386,3237.2,3236.9,0.018]
[1633103061286,1.14050216,3237.1,3236.9,0.018]
[1633103061882,0.00091757,3237.0,3236.9,0.018]
[1633103062077,0.18691757,3237.0,3236.9,0.018]
[1633103063486,1.2723343,3237.0,3236.9,0.018]
[1633103064290,0.18691757,3237.0,3236.9,0.018]
[1633103066280,1.68691757,3237.0,3236.9,0.018]
[1633103066679,2.80373714,3237.0,3236.9,0.018]
[1633103068180,3.34388714,3237.0,3236.9,0.018]
[1633103069383,3.34388714,3237.0,3236.6,4.32643504]
[1633103070384,7.72438,3236.8,3236.6,4.32643504]
[1633103070582,0.186,3236.7,3236.6,4.32643504]
[1633103072385,0.1868619,3236.7,3236.6,4.32643504]
[1633103072583,8.9,3236.6,3236.2,0.003]
[1633103072782,3.27578,3236.5,3236.2,1.43445128]
[1633103072993,4.09802451,3236.4,3236.2,1.43445128]
[1633103073182,0.93203529,3236.3,3236.2,1.43145128]
[1633103073382,0.93203529,3236.3,3236.1,2.04274315]
[1633103073584,0.93203529,3236.3,3236.2,1.43335343]
[1633103073787,0.93203529,3236.3,3236.2,0.003]
[1633103074481,0.186,3236.3,3236.2,1.43316316]
[1633103075681,4.786,3236.3,3236.2,1.38566316]
[1633103075880,1.686,3236.3,3236.2,1.38566316]
[1633103076880,2.68523528,3236.3,3236.2,1.38566316]
[1633103077481,7.31988528,3236.3,3236.2,1.38566316]
[1633103077882,7.31988528,3236.3,3236.1,2.04274315]
[1633103078682,0.88746831,3236.2,3236.1,2.04274315]
[1633103078882,1.07346831,3236.2,3236.1,2.04274315]
[1633103079891,0.186,3236.2,3236.1,2.04274315]
[1633103080286,0.186,3236.2,3236.1,2.00674315]
[1633103080884,1.18402161,3236.2,3235.9,0.003]
[1633103081284,3.09014,3236.0,3235.6,0.52010342]
[1633103081483,3.09014,3236.0,3235.6,0.003]
[1633103081484,3.09008,3235.9,3235.6,0.003]
[1633103081683,3.09008,3235.9,3235.7,0.003]
[1633103081684,6.31578333,3235.9,3235.7,0.003]
[1633103081892,1.18143439,3235.8,3235.7,0.003]
[1633103082288,1.18143439,3235.8,3235.6,0.003]
[1633103082484,0.76191097,3235.7,3235.6,0.003]
[1633103082889,4.07515299,3235.7,3235.6,0.003]
[1633103083083,0.94791097,3235.7,3235.6,0.003]
[1633103083302,4.03857097,3235.7,3235.3,0.52273371]
[1633103083490,4.63591,3235.5,3235.3,0.006]
[1633103083690,4.63591,3235.5,3235.4,0.006]
[1633103084284,10.8170125,3235.5,3235.4,0.006]
[1633103084885,10.8170125,3235.5,3235.2,0.006]
[1633103085152,4.63616,3235.4,3235.2,0.006]
[1633103085502,7.7271253,3235.4,3235.2,0.006]
[1633103085695,0.87248655,3235.2,3235.1,0.006]
[1633103086094,8.1562639,3235.2,3235.1,0.006]
[1633103086289,11.46708887,3235.2,3235.1,0.006]
[1633103087086,6.6104839,3235.2,3235.1,0.006]
[1633103088885,6.6104839,3235.2,3235.0,0.009]
[1633103089086,9.7012739,3235.2,3235.0,0.009]
[1633103090888,10.2414239,3235.2,3235.0,0.009]
[1633103091495,10.2414239,3235.2,3234.9,0.52350666]
[1633103091890,7.7270864,3235.1,3235.0,0.009]
[1633103092092,6.65159704,3235.1,3235.0,0.009]
[1633103092490,6.65159704,3235.1,3234.9,0.009]
[1633103093094,2.01535704,3235.1,3234.9,0.009]
[1633103093491,5.10627704,3235.1,3234.8,0.009]
[1633103094091,5.10627704,3235.1,3234.8,0.51442403]
[1633103094491,5.10627704,3235.1,3234.9,0.009]
[1633103095108,5.10627704,3235.1,3234.9,0.95291784]
[1633103095494,5.10627704,3235.1,3235.0,0.009]
[1633103096192,5.10627704,3235.1,3234.9,0.009]
[1633103096600,9.74249704,3235.1,3234.9,0.009]
[1633103096801,10.66431867,3235.1,3234.9,0.009]
[1633103096993,9.74249704,3235.1,3234.9,0.009]
[1633103098596,9.74249704,3235.1,3234.8,0.009]
[1633103098793,5.10627704,3235.1,3234.8,0.009]
[1633103099192,5.10627704,3235.1,3234.7,0.009]
[1633103099402,8.19736704,3235.1,3234.7,0.009]
[1633103099605,8.19736704,3235.1,3234.7,0.52309958]
[1633103099993,8.19736704,3235.1,3234.6,2.82949213]
[1633103099994,4.63629,3235.0,3234.8,0.009]
[1633103100394,4.63629,3235.0,3234.7,0.009]
[1633103103195,8.19736704,3235.1,3234.7,0.5229333]
[1633103103595,6.18201,3235.1,3235.0,0.82636142]
[1633103104007,6.18201,3235.1,3235.0,0.83536142]
[1633103104796,6.13201,3235.1,3235.0,0.83536142]
[1633103105618,6.13201,3235.1,3235.0,0.009]
[1633103105799,6.13201,3235.1,3235.0,1.42457301]